[Event "*** Titled Tuesday 3|2 Blitz"]
[Site "Chess.com"]
[Date "2017.03.07"]
[Round "3"]
[White "Carolina-moon"]
[Black "Jadeit90"]
[Result "0-1"]
[WhiteElo "2064"]
[BlackElo "2147"]
[TimeControl "180+2"]
[EndTime "13:39:39 PST"]
[Termination "Jadeit90 won by checkmate"]

1. e4 {[%clk 0:03:02]} 1... c5 {[%clk 0:02:58.3]} 2. Nc3 {[%clk 0:03:01.5]} 2...
g6 {[%clk 0:02:58.2]} 3. f4 {[%clk 0:02:57.7]} 3... Bg7 {[%clk 0:02:53.6]} 4.
Nf3 {[%clk 0:02:59]} 4... Nc6 {[%clk 0:02:53.7]} 5. Bc4 {[%clk 0:02:52.4]} 5...
e6 {[%clk 0:02:53.8]} 6. f5 {[%clk 0:02:51]} 6... Nge7 {[%clk 0:02:51.9]} 7.
fxe6 {[%clk 0:02:48.6]} 7... fxe6 {[%clk 0:02:51.5]} 8. O-O {[%clk 0:02:44.6]}
8... O-O {[%clk 0:02:43.7]} 9. d3 {[%clk 0:02:44.4]} 9... d5 {[%clk 0:02:41.8]}
10. Bb3 {[%clk 0:02:43.3]} 10... Nd4 {[%clk 0:02:35.2]} 11. Bg5 {[%clk
0:02:37.4]} 11... Nxb3 {[%clk 0:02:33.6]} 12. axb3 {[%clk 0:02:37.8]} 12... d4
{[%clk 0:02:33.5]} 13. Ne2 {[%clk 0:02:34.4]} 13... h6 {[%clk 0:02:34.6]} 14.
Bh4 {[%clk 0:02:29.2]} 14... e5 {[%clk 0:02:32.4]} 15. Nd2 {[%clk 0:02:23.2]}
15... g5 {[%clk 0:02:33]} 16. Rxf8+ {[%clk 0:02:17.5]} 16... Qxf8 {[%clk
0:02:33.2]} 17. Bg3 {[%clk 0:02:17.9]} 17... Ng6 {[%clk 0:02:33.6]} 18. Nc4
{[%clk 0:02:17.8]} 18... b5 {[%clk 0:02:30.9]} 19. Na5 {[%clk 0:02:03.9]} 19...
Bg4 {[%clk 0:02:31.3]} 20. Qd2 {[%clk 0:02:03.3]} 20... Nf4 {[%clk 0:02:28.3]}
21. Bxf4 {[%clk 0:02:04.4]} 21... gxf4 {[%clk 0:02:29.5]} 22. b4 {[%clk
0:01:43.3]} 22... Rc8 {[%clk 0:02:26.9]} 23. bxc5 {[%clk 0:01:41.2]} 23... Qxc5
{[%clk 0:02:27.4]} 24. Rc1 {[%clk 0:01:26.3]} 24... Kh7 {[%clk 0:02:19.8]} 25.
h3 {[%clk 0:01:06.3]} 25... Bh5 {[%clk 0:02:08.8]} 26. Kh2 {[%clk 0:01:07.2]}
26... Qb6 {[%clk 0:02:04.8]} 27. Nb3 {[%clk 0:01:06.1]} 27... Qg6 {[%clk
0:02:05.5]} 28. Ng1 {[%clk 0:00:59.9]} 28... Qg3+ {[%clk 0:02:06]} 29. Kh1
{[%clk 0:01:01.2]} 29... f3 {[%clk 0:02:05.5]} 30. gxf3 {[%clk 0:00:56.1]} 30...
Bxf3+ {[%clk 0:02:06.1]} 31. Nxf3 {[%clk 0:00:57.2]} 31... Qxf3+ {[%clk
0:02:04.4]} 32. Qg2 {[%clk 0:00:57.9]} 32... Qxg2+ {[%clk 0:01:48.7]} 33. Kxg2
{[%clk 0:00:58.7]} 33... h5 {[%clk 0:01:50.6]} 34. c3 {[%clk 0:00:58.4]} 34...
Bh6 {[%clk 0:01:50.5]} 35. Rc2 {[%clk 0:00:59.3]} 35... Bf4 {[%clk 0:01:44.7]}
36. Kh1 {[%clk 0:00:47.4]} 36... Kh6 {[%clk 0:01:44.5]} 37. c4 {[%clk
0:00:39.2]} 37... bxc4 {[%clk 0:01:45]} 38. dxc4 {[%clk 0:00:27.6]} 38... d3
{[%clk 0:01:44.2]} 39. Rc3 {[%clk 0:00:21.8]} 39... Rd8 {[%clk 0:01:42.3]} 40.
c5 {[%clk 0:00:18.5]} 40... d2 {[%clk 0:01:43.2]} 41. Nxd2 {[%clk 0:00:19.8]}
41... Bxd2 {[%clk 0:01:32.5]} 42. Rc2 {[%clk 0:00:21]} 42... Bb4 {[%clk
0:01:32.8]} 43. c6 {[%clk 0:00:21.4]} 43... Bd6 {[%clk 0:01:33.8]} 44. Rc4
{[%clk 0:00:21.3]} 44... Rc8 {[%clk 0:01:32.6]} 45. b4 {[%clk 0:00:21.9]} 45...
Bc7 {[%clk 0:01:31.8]} 46. b5 {[%clk 0:00:22.6]} 46... Bb6 {[%clk 0:01:33]} 47.
Rc2 {[%clk 0:00:22.9]} 47... Kg5 {[%clk 0:01:34.2]} 48. Rd2 {[%clk 0:00:15.3]}
48... Kf4 {[%clk 0:01:34.6]} 49. Re2 {[%clk 0:00:13.1]} 49... Kf3 {[%clk
0:01:35.4]} 50. Re1 {[%clk 0:00:14.3]} 50... Rg8 {[%clk 0:01:34.6]} 51. Rc1
{[%clk 0:00:12.1]} 51... Kxe4 {[%clk 0:01:35.1]} 52. c7 {[%clk 0:00:12.8]} 52...
Rc8 {[%clk 0:01:36.1]} 53. Rc6 {[%clk 0:00:11.3]} 53... Rxc7 {[%clk 0:01:35.5]}
54. Rxc7 {[%clk 0:00:12]} 54... Bxc7 {[%clk 0:01:36.4]} 55. Kg2 {[%clk
0:00:13.9]} 55... Kd3 {[%clk 0:01:37.5]} 56. Kf1 {[%clk 0:00:13.1]} 56... e4
{[%clk 0:01:38.6]} 57. b6 {[%clk 0:00:15]} 57... Bxb6 {[%clk 0:01:38.6]} 58. h4
{[%clk 0:00:16.4]} 58... e3 {[%clk 0:01:39.6]} 59. Ke1 {[%clk 0:00:18.3]} 59...
Bc7 {[%clk 0:01:38.8]} 60. Kd1 {[%clk 0:00:19.3]} 60... Bg3 {[%clk 0:01:39.5]}
61. Kc1 {[%clk 0:00:20.1]} 61... Be5 {[%clk 0:01:40.2]} 62. Kd1 {[%clk
0:00:20.8]} 62... e2+ {[%clk 0:01:40.9]} 63. Ke1 {[%clk 0:00:22.1]} 63... Bg3#
{[%clk 0:01:42.3]} 0-1

[Event "*** Titled Tuesday 3|2 Blitz"]
[Site "Chess.com"]
[Date "2017.03.07"]
[Round "3"]
[White "DryCounty"]
[Black "afgano29"]
[Result "0-1"]
[WhiteElo "2518"]
[BlackElo "2414"]
[TimeControl "180+2"]
[EndTime "13:39:40 PST"]
[Termination "afgano29 won by resignation"]

1. Nf3 {[%clk 0:03:02]} 1... Nf6 {[%clk 0:03:00.3]} 2. c4 {[%clk 0:03:02.1]}
2... g6 {[%clk 0:02:56.4]} 3. Nc3 {[%clk 0:03:02.2]} 3... d5 {[%clk 0:02:53.7]}
4. cxd5 {[%clk 0:03:02.5]} 4... Nxd5 {[%clk 0:02:55.6]} 5. e4 {[%clk 0:03:02.9]}
5... Nxc3 {[%clk 0:02:56.1]} 6. dxc3 {[%clk 0:03:03.5]} 6... Qxd1+ {[%clk
0:02:56.8]} 7. Kxd1 {[%clk 0:03:04.7]} 7... f6 {[%clk 0:02:58.1]} 8. Kc2 {[%clk
0:03:05.1]} 8... e5 {[%clk 0:02:59]} 9. Be3 {[%clk 0:03:04.7]} 9... Nd7 {[%clk
0:03:00]} 10. Nd2 {[%clk 0:03:02.7]} 10... Bc5 {[%clk 0:03:01.1]} 11. Bxc5
{[%clk 0:03:01.4]} 11... Nxc5 {[%clk 0:03:03]} 12. b4 {[%clk 0:02:58.8]} 12...
Nd7 {[%clk 0:03:00.5]} 13. Nc4 {[%clk 0:02:49.9]} 13... Ke7 {[%clk 0:02:59.4]}
14. g3 {[%clk 0:02:43]} 14... Nb6 {[%clk 0:02:47.8]} 15. Na5 {[%clk 0:02:38.4]}
15... Rb8 {[%clk 0:02:48]} 16. h4 {[%clk 0:02:36]} 16... Bd7 {[%clk 0:02:33.4]}
17. h5 {[%clk 0:02:29.9]} 17... g5 {[%clk 0:02:34]} 18. c4 {[%clk 0:02:14.7]}
18... c5 {[%clk 0:02:24.1]} 19. a3 {[%clk 0:01:55.7]} 19... Rhc8 {[%clk
0:02:18.8]} 20. b5 {[%clk 0:01:43.8]} 20... Be6 {[%clk 0:02:16.5]} 21. Kc3
{[%clk 0:01:31.5]} 21... Rd8 {[%clk 0:02:13.2]} 22. Be2 {[%clk 0:01:23.8]} 22...
Rd4 {[%clk 0:02:05.8]} 23. f3 {[%clk 0:01:19.1]} 23... Rc8 {[%clk 0:01:56.8]}
24. Nb3 {[%clk 0:01:12.6]} 24... Bxc4 {[%clk 0:01:34.2]} 25. Nxd4 {[%clk
0:01:04.6]} 25... exd4+ {[%clk 0:01:34.7]} 26. Kd2 {[%clk 0:01:04.8]} 26... Be6
{[%clk 0:01:30.7]} 27. a4 {[%clk 0:00:52.4]} 27... c4 {[%clk 0:01:26.7]} 28. a5
{[%clk 0:00:53.1]} 28... Nd7 {[%clk 0:01:27.4]} 29. f4 {[%clk 0:00:50]} 29...
Nc5 {[%clk 0:01:25.8]} 30. Ke1 {[%clk 0:00:23.5]} 30... Nxe4 {[%clk 0:01:02]}
31. fxg5 {[%clk 0:00:22.9]} 31... Nxg5 {[%clk 0:00:47.7]} 32. Rd1 {[%clk
0:00:19]} 32... Rd8 {[%clk 0:00:40.4]} 33. Rh4 {[%clk 0:00:19.3]} 33... d3
{[%clk 0:00:39.7]} 34. Bg4 {[%clk 0:00:16.6]} 34... c3 {[%clk 0:00:38.9]} 35.
Bxe6 {[%clk 0:00:16.5]} 35... Nf3+ {[%clk 0:00:37.2]} 36. Kf2 {[%clk 0:00:16.6]}
36... Nxh4 {[%clk 0:00:38.2]} 37. Bc4 {[%clk 0:00:12.4]} 37... c2 {[%clk
0:00:37.1]} 38. Re1+ {[%clk 0:00:09.7]} 38... Kf8 {[%clk 0:00:37.8]} 39. Bxd3
{[%clk 0:00:07.1]} 39... Rxd3 {[%clk 0:00:38.4]} 40. Rc1 {[%clk 0:00:07.8]}
40... Rf3+ {[%clk 0:00:39]} 41. Ke2 {[%clk 0:00:08.5]} 41... Rxg3 {[%clk
0:00:40]} 42. Rxc2 {[%clk 0:00:09.7]} 42... Rg2+ {[%clk 0:00:41.1]} 43. Kd3
{[%clk 0:00:11]} 43... Rxc2 {[%clk 0:00:43]} 44. Kxc2 {[%clk 0:00:12.2]} 44...
Nf5 {[%clk 0:00:44.3]} 45. Kd3 {[%clk 0:00:13.4]} 45... Nd6 {[%clk 0:00:45.3]}
46. b6 {[%clk 0:00:14.6]} 46... axb6 {[%clk 0:00:47.2]} 47. axb6 {[%clk
0:00:15.4]} 47... Nc8 {[%clk 0:00:48.3]} 48. Kd4 {[%clk 0:00:16.7]} 48... Nxb6
{[%clk 0:00:50.2]} 49. Kc5 {[%clk 0:00:18]} 49... Nd7+ {[%clk 0:00:51.7]} 50.
Kd6 {[%clk 0:00:18.3]} 50... Ne5 {[%clk 0:00:53.6]} 51. Ke6 {[%clk 0:00:19.2]}
51... Kg7 {[%clk 0:00:54.9]} 52. h6+ {[%clk 0:00:19.2]} 52... Kg6 {[%clk
0:00:56.1]} 0-1

[Event "*** Titled Tuesday 3|2 Blitz"]
[Site "Chess.com"]
[Date "2017.03.07"]
[Round "3"]
[White "GMBenjaminBok"]
[Black "GM_Splinter"]
[Result "0-1"]
[WhiteElo "2628"]
[BlackElo "2232"]
[TimeControl "180+2"]
[EndTime "13:39:43 PST"]
[Termination "GM_Splinter won on time"]

1. e4 {[%clk 0:03:02]} 1... e5 {[%clk 0:03:00.5]} 2. Nf3 {[%clk 0:03:02.6]} 2...
Nc6 {[%clk 0:03:01.5]} 3. Bc4 {[%clk 0:03:04]} 3... Bc5 {[%clk 0:03:01.5]} 4.
O-O {[%clk 0:03:05]} 4... Nf6 {[%clk 0:03:02.5]} 5. d3 {[%clk 0:03:06.5]} 5...
a6 {[%clk 0:03:02.7]} 6. c3 {[%clk 0:03:07.3]} 6... Ba7 {[%clk 0:03:02.9]} 7. a4
{[%clk 0:03:07.7]} 7... d6 {[%clk 0:03:01.7]} 8. Na3 {[%clk 0:03:08.3]} 8... h6
{[%clk 0:02:56.1]} 9. Nc2 {[%clk 0:03:09.1]} 9... Ne7 {[%clk 0:02:52.4]} 10. Be3
{[%clk 0:03:10.2]} 10... Ng6 {[%clk 0:02:45]} 11. Bxa7 {[%clk 0:03:06.8]} 11...
Rxa7 {[%clk 0:02:45.7]} 12. d4 {[%clk 0:02:54.5]} 12... O-O {[%clk 0:02:38.7]}
13. dxe5 {[%clk 0:02:52.8]} 13... dxe5 {[%clk 0:02:32.5]} 14. Qxd8 {[%clk
0:02:13.3]} 14... Rxd8 {[%clk 0:02:32.9]} 15. Rfd1 {[%clk 0:02:14.7]} 15...
Rxd1+ {[%clk 0:02:22.4]} 16. Rxd1 {[%clk 0:02:14.5]} 16... Bd7 {[%clk
0:02:23.3]} 17. Bb3 {[%clk 0:01:13.8]} 17... Ra8 {[%clk 0:02:15.6]} 18. Nd2
{[%clk 0:01:05.6]} 18... Bc6 {[%clk 0:02:07.8]} 19. Nb4 {[%clk 0:00:59.8]} 19...
Be8 {[%clk 0:01:06.6]} 20. a5 {[%clk 0:00:42.6]} 20... Rd8 {[%clk 0:00:58.7]}
21. f3 {[%clk 0:00:42.6]} 21... Nf4 {[%clk 0:00:55.3]} 22. Nc4 {[%clk 0:00:41]}
22... Rxd1+ {[%clk 0:00:50]} 23. Bxd1 {[%clk 0:00:42.9]} 23... Nd7 {[%clk
0:00:37]} 24. Kf2 {[%clk 0:00:32.4]} 24... Kf8 {[%clk 0:00:35.2]} 25. Ba4 {[%clk
0:00:23.1]} 25... f6 {[%clk 0:00:29.6]} 26. g3 {[%clk 0:00:15.1]} 26... Ne6
{[%clk 0:00:30.2]} 27. Bxd7 {[%clk 0:00:14.3]} 27... Bxd7 {[%clk 0:00:31.2]} 28.
Ne3 {[%clk 0:00:14.8]} 28... Nc5 {[%clk 0:00:22.3]} 29. Nbd5 {[%clk 0:00:12.1]}
29... Nd3+ {[%clk 0:00:19.8]} 30. Ke2 {[%clk 0:00:11.5]} 30... Nxb2 {[%clk
0:00:21.7]} 31. Nxc7 {[%clk 0:00:12.3]} 31... Na4 {[%clk 0:00:20.6]} 32. Kd3
{[%clk 0:00:09.7]} 32... Ke7 {[%clk 0:00:20.6]} 33. Kc4 {[%clk 0:00:08.2]} 33...
Kd6 {[%clk 0:00:20.7]} 34. Ncd5 {[%clk 0:00:08.1]} 34... Nc5 {[%clk 0:00:20.9]}
35. h4 {[%clk 0:00:03.2]} 35... Bb5+ {[%clk 0:00:21.1]} 36. Kb4 {[%clk
0:00:03.8]} 36... Bd7 {[%clk 0:00:20.3]} 37. h5 {[%clk 0:00:03.6]} 37... Nd3+
{[%clk 0:00:18.7]} 38. Kb3 {[%clk 0:00:03.3]} 38... Ne1 {[%clk 0:00:19.4]} 39.
f4 {[%clk 0:00:04.3]} 39... Nd3 {[%clk 0:00:18.3]} 0-1

[Event "*** Titled Tuesday 3|2 Blitz"]
[Site "Chess.com"]
[Date "2017.03.07"]
[Round "3"]
[White "Chesstrainer1"]
[Black "filali-oujda"]
[Result "1/2-1/2"]
[WhiteElo "2328"]
[BlackElo "2239"]
[TimeControl "180+2"]
[EndTime "13:39:45 PST"]
[Termination "Game drawn by repetition"]

1. e4 {[%clk 0:03:01.9]} 1... c6 {[%clk 0:03:02]} 2. d4 {[%clk 0:03:00.8]} 2...
d5 {[%clk 0:03:01.2]} 3. exd5 {[%clk 0:03:01.3]} 3... cxd5 {[%clk 0:03:02]} 4.
c4 {[%clk 0:03:03.2]} 4... Nf6 {[%clk 0:03:02.5]} 5. Nc3 {[%clk 0:03:04.3]} 5...
Nc6 {[%clk 0:03:03.2]} 6. Nf3 {[%clk 0:03:04.8]} 6... Bg4 {[%clk 0:03:03.9]} 7.
Bg5 {[%clk 0:03:05.2]} 7... e6 {[%clk 0:03:00.4]} 8. cxd5 {[%clk 0:02:54.4]}
8... exd5 {[%clk 0:03:00.3]} 9. Qe2+ {[%clk 0:02:54.3]} 9... Be7 {[%clk
0:02:56]} 10. Bxf6 {[%clk 0:02:54.3]} 10... gxf6 {[%clk 0:02:56.2]} 11. Qb5
{[%clk 0:02:36.6]} 11... Kf8 {[%clk 0:02:47.3]} 12. O-O-O {[%clk 0:02:18.8]}
12... Be6 {[%clk 0:02:25.9]} 13. Kb1 {[%clk 0:01:45.2]} 13... a6 {[%clk
0:02:24.3]} 14. Qd3 {[%clk 0:01:42.4]} 14... b5 {[%clk 0:02:25]} 15. Qe3 {[%clk
0:01:41.7]} 15... Rg8 {[%clk 0:02:09.5]} 16. Qh6+ {[%clk 0:01:35.8]} 16... Rg7
{[%clk 0:02:10.1]} 17. Bd3 {[%clk 0:01:36.2]} 17... Kg8 {[%clk 0:02:11.2]} 18.
Rhe1 {[%clk 0:01:24.4]} 18... b4 {[%clk 0:02:10.6]} 19. Ne2 {[%clk 0:01:24.9]}
19... b3 {[%clk 0:02:08.8]} 20. a3 {[%clk 0:01:18.8]} 20... Qd7 {[%clk
0:01:43.5]} 21. Nf4 {[%clk 0:01:14.4]} 21... Bf5 {[%clk 0:01:44.1]} 22. Qh5
{[%clk 0:00:55.8]} 22... Bxd3+ {[%clk 0:01:08.4]} 23. Rxd3 {[%clk 0:00:56.7]}
23... Rd8 {[%clk 0:01:06.4]} 24. Rde3 {[%clk 0:00:49.4]} 24... Bf8 {[%clk
0:00:59.7]} 25. h3 {[%clk 0:00:48.1]} 25... Na5 {[%clk 0:00:57.4]} 26. Nh4
{[%clk 0:00:40.2]} 26... Nc4 {[%clk 0:00:55.5]} 27. R3e2 {[%clk 0:00:34.2]}
27... Rg5 {[%clk 0:00:31.7]} 28. Qf3 {[%clk 0:00:29.5]} 28... Qb5 {[%clk
0:00:28.5]} 29. Nh5 {[%clk 0:00:25.3]} 29... Be7 {[%clk 0:00:18.3]} 30. Nf5
{[%clk 0:00:23.4]} 30... Bf8 {[%clk 0:00:17.4]} 31. Nxf6+ {[%clk 0:00:23.8]}
31... Kh8 {[%clk 0:00:18.9]} 32. h4 {[%clk 0:00:25]} 32... Rg6 {[%clk 0:00:19]}
33. Nh5 {[%clk 0:00:18.3]} 33... Re6 {[%clk 0:00:20.2]} 34. Nfg3 {[%clk
0:00:15.1]} 34... Nd2+ {[%clk 0:00:20.5]} 35. Rxd2 {[%clk 0:00:14.5]} 35...
Rxe1+ {[%clk 0:00:21]} 36. Rd1 {[%clk 0:00:16.1]} 36... Rde8 {[%clk 0:00:20.4]}
37. Qf6+ {[%clk 0:00:13.7]} 37... Kg8 {[%clk 0:00:21.7]} 38. Qg5+ {[%clk
0:00:15]} 38... Kh8 {[%clk 0:00:22.3]} 39. Qf6+ {[%clk 0:00:16.3]} 39... Kg8
{[%clk 0:00:23.8]} 40. Qg5+ {[%clk 0:00:17.6]} 40... Kh8 {[%clk 0:00:25.3]} 41.
Qf6+ {[%clk 0:00:18.9]} 41... Kg8 {[%clk 0:00:26]} 42. Qg5+ {[%clk 0:00:20]}
42... Kh8 {[%clk 0:00:25.2]} 43. Qf6+ {[%clk 0:00:21.1]} 43... Kg8 {[%clk
0:00:24.1]} 44. Qg5+ {[%clk 0:00:21.8]} 44... Kh8 {[%clk 0:00:22.8]} 45. Qf6+
{[%clk 0:00:22.6]} 1/2-1/2

[Event "*** Titled Tuesday 3|2 Blitz"]
[Site "Chess.com"]
[Date "2017.03.07"]
[Round "3"]
[White "jncool68"]
[Black "Dlugy"]
[Result "1-0"]
[WhiteElo "2536"]
[BlackElo "2656"]
[TimeControl "180+2"]
[EndTime "13:39:48 PST"]
[Termination "jncool68 won by checkmate"]

1. e4 {[%clk 0:03:02]} 1... d5 {[%clk 0:03:00.3]} 2. exd5 {[%clk 0:03:02.7]}
2... Qxd5 {[%clk 0:03:02.2]} 3. Nc3 {[%clk 0:03:04.3]} 3... Qd6 {[%clk
0:03:03.9]} 4. d4 {[%clk 0:03:05.4]} 4... c6 {[%clk 0:03:05.3]} 5. Bd3 {[%clk
0:03:05.6]} 5... Nf6 {[%clk 0:03:03.6]} 6. Nge2 {[%clk 0:03:06.6]} 6... g6
{[%clk 0:03:01.9]} 7. Bf4 {[%clk 0:03:06.5]} 7... Qd8 {[%clk 0:03:03.6]} 8. O-O
{[%clk 0:03:07.3]} 8... Bg7 {[%clk 0:03:05.2]} 9. Qd2 {[%clk 0:03:07.8]} 9...
O-O {[%clk 0:03:06.5]} 10. Ne4 {[%clk 0:02:55.5]} 10... Nxe4 {[%clk 0:03:05]}
11. Bxe4 {[%clk 0:02:56.7]} 11... Nd7 {[%clk 0:03:06.7]} 12. c3 {[%clk
0:02:57.2]} 12... e5 {[%clk 0:03:06.6]} 13. Bg5 {[%clk 0:02:55.3]} 13... Nf6
{[%clk 0:02:55.6]} 14. Bf3 {[%clk 0:02:51.4]} 14... Re8 {[%clk 0:02:45.1]} 15.
dxe5 {[%clk 0:02:47.1]} 15... Qxd2 {[%clk 0:02:45.2]} 16. Bxd2 {[%clk
0:02:47.9]} 16... Nd7 {[%clk 0:02:38.1]} 17. Nd4 {[%clk 0:02:36.2]} 17... Nxe5
{[%clk 0:02:38.8]} 18. Bd1 {[%clk 0:02:30]} 18... c5 {[%clk 0:02:03.2]} 19. Nb5
{[%clk 0:02:29.8]} 19... Nc4 {[%clk 0:01:51.9]} 20. Bc1 {[%clk 0:02:28.4]} 20...
Re7 {[%clk 0:01:41.1]} 21. Bb3 {[%clk 0:02:27.1]} 21... Be6 {[%clk 0:01:39.9]}
22. Re1 {[%clk 0:02:02.3]} 22... Rd7 {[%clk 0:01:16.4]} 23. Bf4 {[%clk
0:01:41.6]} 23... Rad8 {[%clk 0:00:32.9]} 24. Bg5 {[%clk 0:01:35.4]} 24... Rc8
{[%clk 0:00:20.5]} 25. Rxe6 {[%clk 0:01:33.9]} 25... fxe6 {[%clk 0:00:21.5]} 26.
Bxc4 {[%clk 0:01:35]} 26... Kf7 {[%clk 0:00:23.1]} 27. Re1 {[%clk 0:01:30.2]}
27... Rc6 {[%clk 0:00:24.3]} 28. Nxa7 {[%clk 0:01:29.6]} 28... Rcd6 {[%clk
0:00:25.4]} 29. Kf1 {[%clk 0:01:26.9]} 29... Kf8 {[%clk 0:00:16.6]} 30. Nb5
{[%clk 0:01:24.3]} 30... Rd1 {[%clk 0:00:17]} 31. Bxe6 {[%clk 0:01:22]} 31...
Rxe1+ {[%clk 0:00:17.8]} 32. Kxe1 {[%clk 0:01:23.3]} 32... Rd3 {[%clk
0:00:18.1]} 33. Ke2 {[%clk 0:01:22.7]} 33... c4 {[%clk 0:00:19.5]} 34. Bxc4
{[%clk 0:01:23.5]} 34... Rd7 {[%clk 0:00:20.5]} 35. Be3 {[%clk 0:01:24.6]} 35...
Be5 {[%clk 0:00:19.9]} 36. h3 {[%clk 0:01:21.9]} 36... Kg7 {[%clk 0:00:19.6]}
37. Bd4 {[%clk 0:01:21.8]} 37... Bxd4 {[%clk 0:00:20.5]} 38. Nxd4 {[%clk
0:01:22.8]} 38... Kf6 {[%clk 0:00:22.4]} 39. a4 {[%clk 0:01:23.1]} 39... Re7+
{[%clk 0:00:24.3]} 40. Kd2 {[%clk 0:01:23]} 40... g5 {[%clk 0:00:26.2]} 41. b4
{[%clk 0:01:23.5]} 41... h5 {[%clk 0:00:28.1]} 42. a5 {[%clk 0:01:24.3]} 42...
g4 {[%clk 0:00:28.6]} 43. hxg4 {[%clk 0:01:25.5]} 43... hxg4 {[%clk 0:00:30.5]}
44. b5 {[%clk 0:01:26.5]} 44... Ke5 {[%clk 0:00:31.8]} 45. a6 {[%clk 0:01:26.3]}
45... Rf7 {[%clk 0:00:31.5]} 46. f3 {[%clk 0:01:18.4]} 46... g3 {[%clk
0:00:31.2]} 47. a7 {[%clk 0:01:18.2]} 47... Rf8 {[%clk 0:00:31.7]} 48. b6 {[%clk
0:01:19.4]} 48... Kd6 {[%clk 0:00:31.8]} 49. Nb5+ {[%clk 0:01:17.9]} 49... Kc5
{[%clk 0:00:32.9]} 50. Nc7 {[%clk 0:01:18.5]} 50... Kxc4 {[%clk 0:00:33.7]} 51.
a8=Q {[%clk 0:01:07.1]} 51... Rxa8 {[%clk 0:00:34.5]} 52. Nxa8 {[%clk
0:01:08.2]} 52... Kc5 {[%clk 0:00:33.4]} 53. f4 {[%clk 0:01:06.1]} 53... Kc4
{[%clk 0:00:34.1]} 54. Ke3 {[%clk 0:01:06.1]} 54... Kxc3 {[%clk 0:00:35]} 55. f5
{[%clk 0:01:06]} 55... Kc4 {[%clk 0:00:36.9]} 56. f6 {[%clk 0:01:07.1]} 56...
Kc5 {[%clk 0:00:38.6]} 57. f7 {[%clk 0:01:08.4]} 57... Kc6 {[%clk 0:00:40.5]}
58. f8=Q {[%clk 0:01:09.3]} 58... Kd5 {[%clk 0:00:42.4]} 59. Qf3+ {[%clk
0:01:09.2]} 59... Kd6 {[%clk 0:00:44.3]} 60. Qxb7 {[%clk 0:01:09.8]} 60... Kc5
{[%clk 0:00:46.2]} 61. Qc7+ {[%clk 0:01:10.7]} 61... Kb5 {[%clk 0:00:48.1]} 62.
b7 {[%clk 0:01:08.2]} 62... Ka6 {[%clk 0:00:50]} 63. Qb6# {[%clk 0:01:08.6]} 1-0

[Event "*** Titled Tuesday 3|2 Blitz"]
[Site "Chess.com"]
[Date "2017.03.07"]
[Round "3"]
[White "Generalas"]
[Black "CM_Perligero"]
[Result "0-1"]
[WhiteElo "2175"]
[BlackElo "2132"]
[TimeControl "180+2"]
[EndTime "13:40:00 PST"]
[Termination "CM_Perligero won by checkmate"]

1. e4 {[%clk 0:03:02]} 1... d5 {[%clk 0:02:58.7]} 2. exd5 {[%clk 0:02:59.6]}
2... Qxd5 {[%clk 0:02:59.7]} 3. Nf3 {[%clk 0:03:00]} 3... Bg4 {[%clk 0:02:56.1]}
4. Be2 {[%clk 0:03:00.6]} 4... Nf6 {[%clk 0:02:56.8]} 5. O-O {[%clk 0:02:58.4]}
5... e6 {[%clk 0:02:55.1]} 6. h3 {[%clk 0:02:52.1]} 6... Bh5 {[%clk 0:02:54.4]}
7. d4 {[%clk 0:02:53.1]} 7... Nc6 {[%clk 0:02:51.9]} 8. c4 {[%clk 0:02:54.1]}
8... Qd8 {[%clk 0:02:50.9]} 9. Nc3 {[%clk 0:02:50.6]} 9... Be7 {[%clk
0:02:38.4]} 10. Be3 {[%clk 0:02:40.3]} 10... O-O {[%clk 0:02:36.9]} 11. a3
{[%clk 0:02:35.8]} 11... Qd7 {[%clk 0:02:34.2]} 12. d5 {[%clk 0:02:05.6]} 12...
exd5 {[%clk 0:02:17.4]} 13. cxd5 {[%clk 0:02:05.4]} 13... Bxf3 {[%clk
0:02:06.4]} 14. Bxf3 {[%clk 0:02:02.5]} 14... Ne5 {[%clk 0:02:06.9]} 15. Bf4
{[%clk 0:01:47]} 15... Ng6 {[%clk 0:01:49.9]} 16. Bh2 {[%clk 0:01:29.7]} 16...
Rad8 {[%clk 0:01:43.8]} 17. Qb3 {[%clk 0:01:23.8]} 17... b6 {[%clk 0:01:40]} 18.
Rad1 {[%clk 0:01:23.7]} 18... Nh4 {[%clk 0:01:32.8]} 19. Be2 {[%clk 0:01:21.8]}
19... Bd6 {[%clk 0:01:28]} 20. Bb5 {[%clk 0:01:12.4]} 20... Bxh2+ {[%clk
0:01:24]} 21. Kxh2 {[%clk 0:01:14.3]} 21... Qd6+ {[%clk 0:01:24.4]} 22. Kg1
{[%clk 0:01:07.5]} 22... Qe5 {[%clk 0:01:19.7]} 23. Qc4 {[%clk 0:00:25.1]} 23...
Qg5 {[%clk 0:01:13.6]} 24. g3 {[%clk 0:00:26.1]} 24... Nf3+ {[%clk 0:01:01.8]}
25. Kg2 {[%clk 0:00:23.9]} 25... Nd2 {[%clk 0:00:59.5]} 26. f4 {[%clk
0:00:17.9]} 26... Nxc4 {[%clk 0:00:58.3]} 27. fxg5 {[%clk 0:00:18.7]} 27... Ne3+
{[%clk 0:00:58.3]} 28. Kf3 {[%clk 0:00:16.7]} 28... Nxd1 {[%clk 0:00:58.6]} 29.
Rxd1 {[%clk 0:00:12.5]} 29... Ne8 {[%clk 0:00:57]} 30. Ne4 {[%clk 0:00:10.2]}
30... Nd6 {[%clk 0:00:57.8]} 31. Bc6 {[%clk 0:00:11.1]} 31... f6 {[%clk
0:00:42.4]} 32. gxf6 {[%clk 0:00:11.6]} 32... Nxe4 {[%clk 0:00:43.1]} 33. Kxe4
{[%clk 0:00:13.5]} 33... Rxf6 {[%clk 0:00:44.5]} 34. Rd4 {[%clk 0:00:14.4]}
34... Rf1 {[%clk 0:00:41.8]} 35. Ra4 {[%clk 0:00:14.5]} 35... a5 {[%clk
0:00:41.6]} 36. b4 {[%clk 0:00:15.5]} 36... Re1+ {[%clk 0:00:34.7]} 37. Kf3
{[%clk 0:00:14.7]} 37... Rf8+ {[%clk 0:00:34.7]} 38. Kg2 {[%clk 0:00:15.4]}
38... axb4 {[%clk 0:00:31.5]} 39. axb4 {[%clk 0:00:15.6]} 39... Rb1 {[%clk
0:00:28.6]} 40. h4 {[%clk 0:00:14.8]} 40... Rb2+ {[%clk 0:00:27.4]} 41. Kh3
{[%clk 0:00:15.9]} 41... h5 {[%clk 0:00:28.1]} 42. b5 {[%clk 0:00:08.6]} 42...
Rff2 {[%clk 0:00:26.7]} 43. g4 {[%clk 0:00:08]} 43... Rb3# {[%clk 0:00:25.3]}
0-1